fUST/lending_fUST_20260227
["ID","MTS","AMOUNT","RATE_DAILY","PERIOD"]
[406745644,1772141441299,-500.0,0.00013525,2]
[406745647,1772141441308,-500.0,0.00013525,2]
[406745648,1772141441318,-500.0,0.00013525,2]
[406745650,1772141441327,-500.0,0.00013525,2]
[406745653,1772141441337,-500.0,0.00013525,2]
[406745655,1772141441347,-500.0,0.00013525,2]
[406745657,1772141441356,-500.0,0.00013525,2]
[406745659,1772141441365,-500.0,0.00013525,2]
[406745661,1772141441375,-500.0,0.00013525,2]
[406745663,1772141441384,-500.0,0.00013525,2]
[406745665,1772141441393,-500.0,0.00013525,2]
[406745666,1772141441402,-500.0,0.00013525,2]
[406745668,1772141441411,-500.0,0.00013525,2]
[406745670,1772141441421,-500.0,0.00013525,2]
[406745673,1772141441430,-500.0,0.00013525,2]
[406745674,1772141441439,-500.0,0.00013525,2]
[406745676,1772141441449,-500.0,0.00013525,2]
[406745678,1772141441458,-500.0,0.00013525,2]
[406745680,1772141441467,-500.0,0.00013525,2]
[406745682,1772141441476,-500.0,0.00013525,2]
[406745684,1772141441485,-500.0,0.00013525,2]
[406745686,1772141441494,-500.0,0.00013525,2]
[406745688,1772141441503,-286.46868174,0.00013525,2]
[406745872,1772141443424,-200.72991164,0.00012404,2]
[406745887,1772141443554,-151.0,0.00013518,2]
[406745889,1772141443563,-500.0,0.00013518,2]
[406745891,1772141443572,-290.39862941,0.00013518,2]
[406745893,1772141443582,-151.0,0.00013518,2]
[406745895,1772141443591,-500.0,0.00013518,2]
[406745897,1772141443600,-301.1433787,0.00013518,2]
[406745899,1772141443608,-151.0,0.00013518,2]
[406745901,1772141443617,-500.0,0.00013518,2]
[406745903,1772141443627,-151.0,0.00013518,2]
[406745905,1772141443635,-500.0,0.00013518,2]
[406745907,1772141443644,-151.0,0.00013518,2]
[406745909,1772141443653,-500.0,0.00013518,2]
[406745911,1772141443662,-500.0,0.00013518,2]
[406745913,1772141443671,-250.0,0.00013518,2]
[406745915,1772141443681,-250.0,0.00013518,2]
[406745917,1772141443690,-213.53131826,0.00013525,2]
[406745919,1772141443699,-500.0,0.00013525,2]
[406745921,1772141443711,-500.0,0.00013525,2]
[406745923,1772141443720,-500.0,0.00013525,2]
[406745925,1772141443729,-500.0,0.00013525,2]
[406745927,1772141443738,-597.61795334,0.00013525,2]
[406745929,1772141443747,-500.0,0.00013525,2]
[406745931,1772141443758,-500.0,0.00013525,2]
[406745932,1772141443768,-500.0,0.00013525,2]
[406745934,1772141443777,-500.0,0.00013525,2]
[406745936,1772141443787,-500.0,0.00013525,2]
[406745938,1772141443796,-500.0,0.00013525,2]
[406745940,1772141443805,-500.0,0.00013525,2]
[406745942,1772141443813,-500.0,0.00013525,2]
[406745945,1772141443823,-500.0,0.00013525,2]
[406745947,1772141443832,-500.0,0.00013525,2]
[406745951,1772141443841,-500.0,0.00013525,2]
[406745952,1772141443851,-500.0,0.00013525,2]
[406745955,1772141443860,-500.0,0.00013525,2]
[406745957,1772141443869,-500.0,0.00013525,2]
[406745959,1772141443878,-500.0,0.00013525,2]
[406745961,1772141443887,-500.0,0.00013525,2]
[406745963,1772141443896,-500.0,0.00013525,2]
[406745965,1772141443905,-500.0,0.00013525,2]
[406745967,1772141443914,-500.0,0.00013525,2]
[406745970,1772141443923,-500.0,0.00013525,2]
[406745972,1772141443932,-500.0,0.00013525,2]
[406745974,1772141443941,-500.0,0.00013525,2]
[406745975,1772141443950,-500.0,0.00013525,2]
[406745977,1772141443959,-500.0,0.00013525,2]
[406745980,1772141443969,-500.0,0.00013525,2]
[406745981,1772141443979,-500.0,0.00013525,2]
[406745984,1772141443988,-500.0,0.00013525,2]
[406745986,1772141443997,-256.29032161,0.00013525,2]
[406745988,1772141444006,-500.0,0.00013525,2]
[406745989,1772141444016,-500.0,0.00013525,2]
[406745992,1772141444025,-500.0,0.00013525,2]
[406745994,1772141444035,-500.0,0.00013525,2]
[406745996,1772141444044,-500.0,0.00013525,2]
[406745997,1772141444054,-500.0,0.00013525,2]
[406746000,1772141444063,-500.0,0.00013525,2]
[406746001,1772141444073,-500.0,0.00013525,2]
[406746003,1772141444082,-500.0,0.00013525,2]
[406746025,1772141444262,-300.0,0.00013525,2]
[406746027,1772141444271,-500.0,0.00013525,2]
[406746029,1772141444281,-500.0,0.00013525,2]
[406746031,1772141444290,-500.0,0.00013525,2]
[406746033,1772141444299,-291.59260909,0.00013525,2]
[406746035,1772141444308,-500.0,0.00013525,2]
[406746037,1772141444317,-500.0,0.00013525,2]
[406746039,1772141444327,-500.0,0.00013525,2]
[406746041,1772141444335,-250.0,0.00013525,2]
[406746043,1772141444344,-1487.2992591,0.00013527,2]
[406746045,1772141444353,-83056.8880903,0.00013527,2]
[406746047,1772141444362,-338.0,0.0001356,2]
[406746049,1772141444371,-166.0,0.0001356,2]
[406746051,1772141444380,-625.31727441,0.0001356,2]
[406746053,1772141444389,-244.74175105,0.0001356,2]
[406746055,1772141444398,-689.0,0.0001356,2]
[406746057,1772141444407,-156.88662602,0.0001356,2]
[406746059,1772141444416,-166.0,0.0001356,2]
[406746061,1772141444425,-338.0,0.0001356,2]
[406746063,1772141444434,-166.0,0.0001356,2]
[406746065,1772141444443,-338.0,0.0001356,2]
[406746067,1772141444452,-166.0,0.0001356,2]
[406746069,1772141444461,-338.0,0.0001356,2]
[406746071,1772141444470,-338.0,0.0001356,2]
[406746073,1772141444479,-338.0,0.0001356,2]
[406746075,1772141444488,-338.0,0.0001356,2]
[406746077,1772141444497,-338.0,0.0001356,2]
[406746079,1772141444506,-165.0,0.0001356,2]
[406746081,1772141444516,-338.0,0.0001356,2]
[406746083,1772141444525,-2030.296672,0.00013573,2]
[406746085,1772141444535,-2105.41764886,0.00013628,2]
[406746087,1772141444544,-300.0,0.00013673,2]
[406746089,1772141444553,-2183.31810187,0.00013683,2]
[406746091,1772141444562,-151.0,0.00013694,2]
[406746093,1772141444571,-151.0,0.00013694,2]
[406746095,1772141444580,-151.0,0.00013694,2]
[406746096,1772141444590,-151.0,0.00013694,2]
[406746098,1772141444598,-151.0,0.00013694,2]
[406746100,1772141444607,-213.6,0.00013694,2]
[406746102,1772141444616,-500.0,0.00013698,2]
[406746104,1772141444625,-500.0,0.00013698,3]
[406746106,1772141444635,-500.0,0.00013698,4]
[406746108,1772141444644,-500.0,0.00013698,5]
[406746110,1772141444653,-500.0,0.00013698,6]
[406746113,1772141444663,-500.0,0.00013698,7]
[406746114,1772141444672,-500.0,0.00013698,8]
[406746116,1772141444682,-500.0,0.00013698,9]
[406746118,1772141444691,-500.0,0.00013698,10]
[406746120,1772141444700,-500.0,0.00013698,11]
[406746123,1772141444713,-570.91232689,0.00013698,12]
[406746125,1772141444722,-326.36626682,0.00013698,2]
[406746126,1772141444731,-202.96478836,0.00013698,2]
[406746128,1772141444740,-500.0,0.00013698,2]
[406746130,1772141444750,-996.885784,0.00013699,2]
[406746133,1772141444759,-46940.0490847,0.00013699,2]
[406746135,1772141444769,-542.3290321,0.00013699,2]
[406746137,1772141444779,-500.0,0.00013699,2]
[406746139,1772141444789,-500.0,0.00013699,2]
[406746141,1772141444798,-500.0,0.00013699,2]
[406746143,1772141444807,-500.0,0.00013699,2]
[406746145,1772141444817,-171.72669464,0.00013699,2]
[406746147,1772141444826,-500.0,0.00013699,2]
[406746149,1772141444835,-500.0,0.00013699,2]
[406746151,1772141444844,-500.0,0.00013699,2]
[406746153,1772141444853,-500.0,0.00013699,2]
[406746155,1772141444862,-500.0,0.00013699,2]
[406746157,1772141444871,-300.0,0.00013699,2]
[406746159,1772141444880,-500.0,0.00013699,2]
[406746161,1772141444889,-500.0,0.00013699,2]
[406746163,1772141444899,-500.0,0.00013699,2]
[406746165,1772141444908,-500.0,0.00013699,2]
[406746167,1772141444917,-500.0,0.00013699,2]
[406746169,1772141444926,-500.0,0.00013699,2]
[406746171,1772141444936,-500.0,0.00013699,2]
[406746173,1772141444945,-500.0,0.00013699,2]
[406746175,1772141444954,-500.0,0.00013699,2]
[406746177,1772141444963,-500.0,0.00013699,2]
[406746179,1772141444973,-500.0,0.00013699,2]
[406746181,1772141444983,-389.16745886,0.00013699,2]
[406746183,1772141444992,-500.0,0.00013699,2]
[406746185,1772141445001,-223.77416114,0.00013699,2]
[406746187,1772141445010,-500.0,0.00013699,2]
[406746189,1772141445019,-500.0,0.00013699,2]
[406746191,1772141445029,-551.93251261,0.00013699,2]
[406746193,1772141445038,-500.0,0.00013699,2]
[406746195,1772141445047,-232.62213277,0.00013699,2]
[406746197,1772141445057,-507.50724426,0.00013699,2]
[406746199,1772141445066,-500.0,0.00013699,2]
[406746201,1772141445075,-150.0,0.000137,2]
[406746203,1772141445085,-420.0,0.0001372,2]
[406746205,1772141445094,-2264.10087164,0.00013738,2]
[406746207,1772141445103,-1680.0,0.00013755,2]
[406746209,1772141445112,-468.0966456,0.00013793,2]
[406746211,1772141445121,-693.3919763,0.00013808,2]
[406746213,1772141445131,-1000.0,0.00013821,2]
[406746215,1772141445140,-1000.0,0.00013821,2]
[406746217,1772141445150,-1000.0,0.00013821,2]
[406746219,1772141445159,-1000.0,0.00013821,2]
[406746221,1772141445169,-1000.0,0.00013821,2]
[406746223,1772141445178,-325.53835913,0.00013821,2]
[406746225,1772141445188,-1000.0,0.00013821,2]
[406746227,1772141445197,-1000.0,0.00013821,2]
[406746229,1772141445206,-500.0,0.00013821,2]
[406746231,1772141445215,-1000.0,0.00013821,2]
[406746233,1772141445224,-746.98392747,0.00014042,2]
[406746235,1772141445234,-1344.57106945,0.00014042,2]
[406746237,1772141445243,-2390.34856791,0.00014042,2]
[406746239,1772141445252,-180.28910356,0.00014042,2]
[406746241,1772141445261,-721.15641425,0.00014042,2]
[406746243,1772141445270,-1622.60193206,0.00014042,2]
[406746245,1772141445279,-3734.91963735,0.00014042,2]
[406746247,1772141445289,-2884.625657,0.00014042,2]
[406746249,1772141445299,-246.40836602,0.00014042,2]
[406746251,1772141445312,-443.53505884,0.00014042,2]
[406746253,1772141445322,-788.50677127,0.00014042,2]
[406746256,1772141445331,-251.33020838,0.00014042,2]
[406746257,1772141445340,-452.39437509,0.00014042,2]
[406746260,1772141445349,-804.25666682,0.00014042,2]
[406746262,1772141445358,-724.13658399,0.00014154,2]
[406746263,1772141445367,-706.80124078,0.00014175,3]
[406746266,1772141445376,-708.73130356,0.00014175,3]
[406746268,1772141445385,-715.13864304,0.00014175,2]
[406746269,1772141445394,-707.21199715,0.00014175,2]
[406746272,1772141445403,-600.0,0.00014179,2]
[406746273,1772141445412,-600.0,0.00014221,2]
[406746276,1772141445421,-383.75806494,0.00014247,2]
[406746278,1772141445431,-595.19986559,0.00014247,2]
[406746280,1772141445440,-500.0,0.00014247,2]
[406746282,1772141445449,-500.0,0.00014247,2]
[406746284,1772141445459,-657.73725986,0.00014247,2]
[406746286,1772141445467,-500.0,0.00014247,2]
[406746288,1772141445477,-1000.0,0.00014247,2]
[406746290,1772141445486,-500.0,0.00014247,2]
[406746292,1772141445495,-500.0,0.00014247,2]
[406746294,1772141445504,-563.69048419,0.00014247,2]
[406746296,1772141445513,-508.70804985,0.00014247,2]
[406746298,1772141445524,-503.98071554,0.00014247,2]
[406746299,1772141445532,-500.84699625,0.00014247,2]
[406746301,1772141445542,-1000.0,0.00014247,2]
[406746302,1772141445551,-1000.0,0.00014247,2]
[406746303,1772141445560,-1000.0,0.00014247,2]
[406746304,1772141445569,-500.0,0.00014247,2]
[406746305,1772141445579,-500.0,0.00014247,2]
[406746306,1772141445588,-500.0,0.00014247,2]
[406746307,1772141445597,-797.11106839,0.00014247,2]
[406746308,1772141445606,-500.0,0.00014247,2]
[406746309,1772141445616,-1000.0,0.00014247,2]
[406746310,1772141445625,-500.0,0.00014247,2]
[406746311,1772141445635,-500.0,0.00014247,2]
[406746312,1772141445644,-295.43413096,0.00014317,2]
[406746313,1772141445653,-719.04747942,0.00014356,2]
[406746314,1772141445662,-1345.8756843,0.00014368,2]
[406746315,1772141445671,-169.58645605,0.00014368,2]
[406746316,1772141445680,-1500.0,0.00014368,2]
[406746317,1772141445689,-505.66797579,0.00014368,2]
[406746318,1772141445698,-1500.0,0.00014368,2]
[406746319,1772141445709,-1500.0,0.00014368,2]
[406746320,1772141445720,-1500.0,0.00014368,2]
[406746321,1772141445729,-1500.0,0.00014368,2]
[406746322,1772141445738,-9000.0,0.0001437,2]
[406746323,1772141445747,-5052.16850778,0.0001437,2]
[406746324,1772141445758,-594.92244198,0.00014422,5]
[406746325,1772141445767,-606.80561998,0.00014422,5]
[406746326,1772141445776,-500.0,0.00014591,2]
[406746327,1772141445787,-660.51984225,0.00014768,2]
[406746328,1772141445797,-150.0,0.00014775,2]
[406746329,1772141445806,-207.587,0.00014775,2]
[406746330,1772141445815,-150.0,0.00014775,2]
[406746331,1772141445824,-150.572,0.00014775,2]
[406746332,1772141445833,-250.0,0.00014775,2]
[406746333,1772141445842,-150.0,0.00014775,2]
[406746334,1772141445851,-150.0,0.00014775,2]
[406746335,1772141445861,-179.85660542,0.00014795,2]
[406746336,1772141445870,-1500.0,0.00014795,2]
[406746337,1772141445879,-1500.0,0.00014795,2]
[406746338,1772141445888,-666.49657751,0.00014795,2]
[406746339,1772141445898,-354.27311481,0.00014795,2]
[406746340,1772141445907,-2181.0,0.00014831,2]
[406746341,1772141445916,-637.0,0.00014831,2]
[406746342,1772141445925,-1386.0,0.00014831,2]
[406746343,1772141445934,-437.598,0.00014831,2]
[406746344,1772141445943,-544.16,0.00014831,2]
[406746345,1772141445952,-728.0,0.00014831,2]
[406746346,1772141445961,-724.13658399,0.00014848,2]
[406746347,1772141445970,-745.65223616,0.00014904,2]
[406746348,1772141445980,-2000.0,0.00014916,2]
[406746349,1772141445989,-2000.0,0.00014916,2]
[406746350,1772141446001,-2000.0,0.00014916,2]
[406746351,1772141446010,-2000.0,0.00014916,2]
[406746352,1772141446019,-2000.0,0.00014916,2]
[406746354,1772141446030,-184.272,0.00014917,2]
[406746355,1772141446039,-1487.2992591,0.00014964,2]
[406746357,1772141446049,-20000.0,0.00015,2]
[406746358,1772141446058,-78305.57784581,0.00015,2]
[406746365,1772141447946,-250.0,0.00013518,2]
[406746366,1772141447956,-1149.82746892,0.00013518,2]
[406746367,1772141447971,-1623.74043627,0.00013518,2]
[406746368,1772141447980,-250.0,0.00013518,2]
[406746369,1772141447990,-250.0,0.00013518,2]
[406746370,1772141448000,-250.0,0.00013518,2]
[406746371,1772141448011,-250.0,0.00013518,2]
[406746372,1772141448022,-8826.81771287,0.00015,2]
[406746373,1772141448032,-565.83839059,0.00015,2]
[406746374,1772141448760,5000.0,0.00013501,2]
[406746399,1772142631529,-5000.0,0.00010346,2]
[406746400,1772142631539,-5000.0,0.00010451,2]
[406746401,1772142631549,-567.0,0.00010451,2]
[406746402,1772142631560,-1200.0,0.00010556,2]
[406746403,1772142631570,-245.70220849,0.00010611,2]
[406746404,1772142631581,-300.0,0.00010663,2]
[406746405,1772142631590,-300.0,0.00010663,2]
[406746406,1772142631599,-300.0,0.00010663,2]
[406746407,1772142631608,-58.75389018,0.00010663,2]
[406746930,1772142637658,-5000.0,0.00010556,2]
[406746932,1772142637668,-241.24610982,0.00010663,2]
[406746933,1772142637677,-300.0,0.00010663,2]
[406746934,1772142637687,-2701.8510521,0.00010991,2]
[406746935,1772142637696,-1814.02671856,0.00011444,2]
[406746936,1772142637706,-4448.50301922,0.00011444,2]
[406746937,1772142637715,-1680.0,0.00011612,2]
[406746938,1772142637725,-420.0,0.00011721,2]
[406746939,1772142637734,-500.0,0.00011997,2]
[406746940,1772142637745,-77.95118402,0.00011997,2]
[406747004,1772142645831,-422.04881598,0.00011997,2]
[406747005,1772142645842,-500.0,0.00011997,2]
[406747006,1772142645854,-500.0,0.00011997,2]
[406747007,1772142645864,-500.0,0.00011997,2]
[406747008,1772142645875,-500.0,0.00011997,2]
[406747009,1772142645886,-500.0,0.00011997,2]
[406747010,1772142645897,-500.0,0.00011997,2]
[406747011,1772142645908,-413.48953939,0.00011997,2]
[406747013,1772143243661,-472.86528096,0.00011,2]
[406747015,1772143544823,200.0,9.5e-05,2]
[406747039,1772143831654,-658.06644971,0.00010257,2]
[406747117,1772143842942,-4341.93355029,0.00010257,2]
[406747118,1772143842952,-5000.0,0.00010361,2]
[406747119,1772143842962,-1200.0,0.00010465,2]
[406747120,1772143842971,-300.0,0.00010465,2]
[406747121,1772143842980,-7708.72672991,0.00010466,2]
[406747122,1772143842989,-252.73090465,0.0001062,2]
[406747123,1772143842998,-300.0,0.00010672,2]
[406747124,1772143843007,-200.0,0.00011,2]
[406747125,1772143843016,-10000.0,0.000111,2]
[406747126,1772143843027,-420.0,0.00011506,2]
[406747127,1772143843037,-1680.0,0.00011512,2]
[406747128,1772143843046,-22180.0925861,0.00011512,2]
[406747129,1772143843055,-494.46484309,0.0001162,2]
[406747130,1772143843064,-500.0,0.00011717,2]
[406747131,1772143843073,-362.12289703,0.00011717,2]
[406747132,1772143843082,-198.68092178,0.00011717,2]
[406747133,1772143843091,-500.0,0.00011717,2]
[406747134,1772143843101,-500.0,0.00011717,2]
[406747135,1772143843110,-500.0,0.00011717,2]
[406747136,1772143843119,-500.0,0.00011717,2]
[406747137,1772143843128,-500.0,0.00011717,2]
[406747138,1772143843137,-500.0,0.00011717,2]
[406747139,1772143843146,-500.0,0.00011717,2]
[406747140,1772143843155,-500.0,0.00011717,2]
[406747141,1772143843164,-500.0,0.00011717,2]
[406747142,1772143843173,-500.0,0.00011717,2]
[406747143,1772143843182,-500.0,0.00011717,2]
[406747144,1772143843191,-500.0,0.00011717,2]
[406747145,1772143843200,-500.0,0.00011717,2]
[406747146,1772143843210,-500.0,0.00011717,2]
[406747147,1772143843219,-500.0,0.00011717,2]
[406747148,1772143843229,-500.0,0.00011717,2]
[406747149,1772143843239,-500.0,0.00011717,2]
[406747150,1772143843249,-500.0,0.00011717,2]
[406747151,1772143843258,-500.0,0.00011717,2]
[406747152,1772143843267,-500.0,0.00011717,2]
[406747153,1772143843277,-500.0,0.00011717,2]
[406747154,1772143843286,-500.0,0.00011717,2]
[406747155,1772143843295,-500.0,0.00011717,2]
[406747156,1772143843305,-500.0,0.00011717,2]
[406747157,1772143843314,-500.0,0.00011717,2]
[406747158,1772143843323,-500.0,0.00011717,2]
[406747159,1772143843331,-500.0,0.00011717,2]
[406747160,1772143843341,-500.0,0.00011717,2]
[406747161,1772143843349,-477.6253704,0.00011717,2]
[406747162,1772143843359,-500.0,0.00011717,2]
[406747163,1772143843368,-500.0,0.00011717,2]
[406747164,1772143843379,-500.0,0.00011717,2]
[406747165,1772143843389,-500.0,0.00011717,2]
[406747166,1772143843399,-500.0,0.00011717,2]
[406747167,1772143843409,-500.0,0.00011717,2]
[406747168,1772143843609,-500.0,0.00011717,2]
[406747169,1772143843619,-500.0,0.00011717,2]
[406747170,1772143843628,-500.0,0.00011717,2]
[406747171,1772143843637,-500.0,0.00011717,2]
[406747172,1772143843646,-500.0,0.00011717,2]
[406747173,1772143843655,-500.0,0.00011717,2]
[406747174,1772143843664,-500.0,0.00011717,2]
[406747175,1772143843674,-500.0,0.00011717,2]
[406747176,1772143843684,-500.0,0.00011717,2]
[406747177,1772143843693,-500.0,0.00011717,2]
[406747178,1772143843702,-500.0,0.00011717,2]
[406747179,1772143843711,-500.0,0.00011717,2]
[406747180,1772143843720,-500.0,0.00011717,2]
[406747181,1772143843730,-500.0,0.00011717,2]
[406747182,1772143843738,-500.0,0.00011717,2]
[406747183,1772143843747,-500.0,0.00011717,2]
[406747184,1772143843757,-500.0,0.00011717,2]
[406747185,1772143843767,-500.0,0.00011717,2]
[406747186,1772143843776,-500.0,0.00011717,2]
[406747187,1772143843785,-500.0,0.00011717,2]
[406747188,1772143843794,-500.0,0.00011717,2]
[406747189,1772143843803,-500.0,0.00011717,2]
[406747190,1772143843812,-395.0,0.00011717,2]
[406747191,1772143843822,-500.0,0.00011717,2]
[406747192,1772143843831,-500.0,0.00011717,2]
[406747193,1772143843840,-350.0,0.00011717,2]
[406747194,1772143843850,-500.0,0.00011717,2]
[406747195,1772143843859,-500.0,0.00011717,2]
[406747196,1772143843870,-500.0,0.00011717,2]
[406747197,1772143843879,-500.0,0.00011717,2]
[406747198,1772143843889,-500.0,0.00011717,2]
[406747199,1772143843900,-500.0,0.00011717,2]
[406747200,1772143843910,-412.63101244,0.00011717,2]
[406747201,1772143843919,-500.0,0.00011717,2]
[406747202,1772143843928,-500.0,0.00011717,2]
[406747203,1772143843937,-500.0,0.00011717,2]
[406747204,1772143843947,-500.0,0.00011717,2]
[406747205,1772143843956,-500.0,0.00011717,2]
[406747206,1772143843967,-500.0,0.00011717,2]
[406747207,1772143843976,-500.0,0.00011717,2]
[406747208,1772143843986,-500.0,0.00011717,2]
[406747209,1772143843996,-500.0,0.00011717,2]
[406747210,1772143844006,-500.0,0.00011717,2]
[406747211,1772143844016,-500.0,0.00011717,2]
[406747212,1772143844027,-500.0,0.00011717,2]
[406747213,1772143844037,-500.0,0.00011717,2]
[406747214,1772143844047,-500.0,0.00011717,2]
[406747215,1772143844057,-500.0,0.00011717,2]
[406747216,1772143844067,-500.0,0.00011717,2]
[406747217,1772143844077,-500.0,0.00011717,2]
[406747218,1772143844086,-500.0,0.00011717,2]
[406747219,1772143844096,-500.0,0.00011717,2]
[406747220,1772143844105,-500.0,0.00011717,2]
[406747221,1772143844114,-500.0,0.00011717,2]
[406747222,1772143844123,-500.0,0.00011717,2]
[406747223,1772143844133,-500.0,0.00011717,2]
[406747224,1772143844142,-500.0,0.00011717,2]
[406747225,1772143844151,-500.0,0.00011717,2]
[406747226,1772143844161,-500.0,0.00011717,2]
[406747227,1772143844170,-500.0,0.00011717,2]
[406747228,1772143844180,-500.0,0.00011717,2]
[406747229,1772143844189,-500.0,0.00011717,2]
[406747230,1772143844199,-500.0,0.00011717,2]
[406747231,1772143844208,-500.0,0.00011717,2]
[406747232,1772143844218,-500.0,0.00011717,2]
[406747233,1772143844227,-500.0,0.00011717,2]
[406747234,1772143844236,-500.0,0.00011717,2]
[406747235,1772143844245,-500.0,0.00011717,2]
[406747236,1772143844255,-500.0,0.00011717,2]
[406747237,1772143844264,-500.0,0.00011717,2]
[406747238,1772143844273,-500.0,0.00011717,2]
[406747239,1772143844283,-500.0,0.00011717,2]
[406747240,1772143844292,-500.0,0.00011717,2]
[406747241,1772143844301,-500.0,0.00011717,2]
[406747242,1772143844312,-500.0,0.00011717,2]
[406747243,1772143844322,-500.0,0.00011717,2]
[406747244,1772143844331,-500.0,0.00011717,2]
[406747245,1772143844340,-500.0,0.00011717,2]
[406747246,1772143844349,-500.0,0.00011717,2]
[406747247,1772143844358,-500.0,0.00011717,2]
[406747248,1772143844367,-500.0,0.00011717,2]
[406747249,1772143844379,-500.0,0.00011717,2]
[406747250,1772143844387,-500.0,0.00011717,2]
[406747251,1772143844396,-500.0,0.00011717,2]
[406747252,1772143844405,-500.0,0.00011717,2]
[406747253,1772143844414,-500.0,0.00011717,2]
[406747254,1772143844425,-500.0,0.00011717,2]
[406747255,1772143844434,-500.0,0.00011717,2]
[406747256,1772143844443,-500.0,0.00011717,2]
[406747257,1772143844455,-500.0,0.00011717,2]
[406747258,1772143844464,-500.0,0.00011717,2]
[406747259,1772143844474,-500.0,0.00011717,2]
[406747260,1772143844483,-500.0,0.00011717,2]
[406747261,1772143844492,-175.62903216,0.00011717,2]
[406747262,1772143844501,-500.0,0.00011717,2]
[406747263,1772143844510,-500.0,0.00011717,2]
[406747264,1772143844520,-500.0,0.00011717,2]
[406747265,1772143844529,-500.0,0.00011717,2]
[406747266,1772143844538,-500.0,0.00011717,2]
[406747267,1772143844547,-500.0,0.00011717,2]
[406747268,1772143844556,-500.0,0.00011717,2]
[406747269,1772143844565,-500.0,0.00011717,2]
[406747270,1772143844574,-500.0,0.00011717,2]
[406747271,1772143844583,-500.0,0.00011717,2]
[406747272,1772143844592,-500.0,0.00011717,2]
[406747273,1772143844601,-253.64314957,0.00011717,2]
[406747274,1772143844610,-500.0,0.00011717,2]
[406747275,1772143844619,-500.0,0.00011717,2]
[406747276,1772143844628,-500.0,0.00011717,2]
[406747277,1772143844637,-500.0,0.00011717,2]
[406747278,1772143844646,-500.0,0.00011717,2]
[406747279,1772143844655,-500.0,0.00011717,2]
[406747280,1772143844665,-500.0,0.00011717,2]
[406747281,1772143844674,-500.0,0.00011717,2]
[406747282,1772143844684,-500.0,0.00011717,2]
[406747283,1772143844695,-500.0,0.00011717,2]
[406747284,1772143844703,-500.0,0.00011717,2]
[406747285,1772143844713,-500.0,0.00011717,2]
[406747286,1772143844722,-500.0,0.00011717,2]
[406747287,1772143844731,-500.0,0.00011717,2]
[406747288,1772143844741,-500.0,0.00011717,2]
[406747289,1772143844750,-500.0,0.00011717,2]
[406747290,1772143844760,-500.0,0.00011717,2]
[406747291,1772143844769,-500.0,0.00011717,2]
[406747292,1772143844778,-500.0,0.00011717,2]
[406747293,1772143844788,-500.0,0.00011717,2]
[406747294,1772143844798,-500.0,0.00011717,2]
[406747295,1772143844808,-500.0,0.00011717,2]
[406747296,1772143844817,-500.0,0.00011717,2]
[406747297,1772143844826,-500.0,0.00011717,2]
[406747298,1772143844835,-500.0,0.00011717,2]
[406747299,1772143844845,-500.0,0.00011717,2]
[406747300,1772143844854,-500.0,0.00011717,2]